[Event "*** SCC Grand Prix: Titled Tuesday Blitz"]
[Site "Chess.com"]
[Date "2020.06.23"]
[Round "2"]
[White "Godzillator"]
[Black "KejJaj"]
[Result "1-0"]
[WhiteElo "2373"]
[BlackElo "1996"]
[TimeControl "180+1"]
[EndTime "10:16:06 PDT"]
[Termination "Godzillator won by resignation"]

1. d4 {[%clk 0:03:00.9]} 1... f5 {[%clk 0:02:59.2]} 2. c4 {[%clk 0:03:01.1]}
2... Nf6 {[%clk 0:02:59.3]} 3. Nc3 {[%clk 0:03:01.1]} 3... e6 {[%clk 0:02:59.6]}
4. g3 {[%clk 0:03:00.8]} 4... d5 {[%clk 0:02:58]} 5. Bg2 {[%clk 0:03:01.1]} 5...
c6 {[%clk 0:02:58.5]} 6. b3 {[%clk 0:03:00.1]} 6... Bd6 {[%clk 0:02:57.9]} 7.
Nf3 {[%clk 0:02:59]} 7... Qe7 {[%clk 0:02:54.1]} 8. Qc2 {[%clk 0:02:58.3]} 8...
Ne4 {[%clk 0:02:45.2]} 9. Bb2 {[%clk 0:02:56.7]} 9... Nd7 {[%clk 0:02:43.9]} 10.
e3 {[%clk 0:02:50.3]} 10... O-O {[%clk 0:02:42.6]} 11. O-O {[%clk 0:02:50.1]}
11... Ndf6 {[%clk 0:02:14.1]} 12. Ne2 {[%clk 0:02:48.4]} 12... g5 {[%clk
0:02:08.1]} 13. Ne1 {[%clk 0:02:47.5]} 13... Ng4 {[%clk 0:02:01]} 14. Qc1 {[%clk
0:02:38.6]} 14... Nexf2 {[%clk 0:01:57.9]} 15. Rxf2 {[%clk 0:02:38.1]} 15...
Nxf2 {[%clk 0:01:57.9]} 16. Kxf2 {[%clk 0:02:38.1]} 16... f4 {[%clk 0:01:56.7]}
17. gxf4 {[%clk 0:02:36.6]} 17... gxf4 {[%clk 0:01:55.6]} 18. e4 {[%clk
0:02:36.6]} 18... Qh4+ {[%clk 0:01:53.2]} 19. Kg1 {[%clk 0:02:36.7]} 19... f3
{[%clk 0:01:50.1]} 20. Nxf3 {[%clk 0:02:35.7]} 20... Rxf3 {[%clk 0:01:48.6]} 21.
Bxf3 {[%clk 0:02:35.9]} 21... Bxh2+ {[%clk 0:01:34.5]} 22. Kg2 {[%clk
0:02:34.4]} 22... e5 {[%clk 0:01:31.3]} 23. Qh1 {[%clk 0:02:24]} 23... Qh3+
{[%clk 0:00:56.2]} 24. Kf2 {[%clk 0:02:23.1]} 24... Bd7 {[%clk 0:00:47]} 25.
Qg2+ {[%clk 0:02:21]} 25... Qxg2+ {[%clk 0:00:37.5]} 26. Kxg2 {[%clk 0:02:20.8]}
26... Bf4 {[%clk 0:00:28.7]} 27. Nxf4 {[%clk 0:02:20.4]} 27... exf4 {[%clk
0:00:29.3]} 28. exd5 {[%clk 0:02:18.3]} 28... Re8 {[%clk 0:00:22.3]} 29. dxc6
{[%clk 0:02:16.9]} 29... Bxc6 {[%clk 0:00:22.1]} 30. Bxc6 {[%clk 0:02:15.6]}
30... bxc6 {[%clk 0:00:19.4]} 31. Kf3 {[%clk 0:02:15.3]} 1-0

[Event "*** SCC Grand Prix: Titled Tuesday Blitz"]
[Site "Chess.com"]
[Date "2020.06.23"]
[Round "2"]
[White "Kumi29"]
[Black "AlanTate"]
[Result "0-1"]
[WhiteElo "2404"]
[BlackElo "2391"]
[TimeControl "180+1"]
[EndTime "10:16:12 PDT"]
[Termination "AlanTate won by resignation"]

1. e4 {[%clk 0:03:00.9]} 1... g6 {[%clk 0:02:58.6]} 2. h4 {[%clk 0:03:00.3]}
2... d5 {[%clk 0:02:58.1]} 3. e5 {[%clk 0:02:59.9]} 3... h5 {[%clk 0:02:53]} 4.
d4 {[%clk 0:02:58.8]} 4... Nh6 {[%clk 0:02:51.7]} 5. Be3 {[%clk 0:02:56.3]} 5...
Bf5 {[%clk 0:02:27.3]} 6. Bd3 {[%clk 0:02:55.6]} 6... Bxd3 {[%clk 0:02:27.2]} 7.
Qxd3 {[%clk 0:02:56.5]} 7... Qd7 {[%clk 0:02:09]} 8. Nf3 {[%clk 0:02:49.3]} 8...
e6 {[%clk 0:02:03.3]} 9. c4 {[%clk 0:02:40.8]} 9... dxc4 {[%clk 0:02:00.3]} 10.
Qxc4 {[%clk 0:02:41.7]} 10... Nc6 {[%clk 0:01:29.5]} 11. Nc3 {[%clk 0:02:40.5]}
11... Nb4 {[%clk 0:01:27.1]} 12. Ne4 {[%clk 0:02:38.6]} 12... Nd5 {[%clk
0:01:27]} 13. Nfg5 {[%clk 0:02:27.3]} 13... Be7 {[%clk 0:01:14.7]} 14. O-O
{[%clk 0:02:21.6]} 14... Nf5 {[%clk 0:01:13.2]} 15. Qd3 {[%clk 0:02:08.8]} 15...
Nxh4 {[%clk 0:01:09]} 16. Nc5 {[%clk 0:02:00.9]} 16... Bxc5 {[%clk 0:00:53.7]}
17. dxc5 {[%clk 0:02:01.8]} 17... Qc6 {[%clk 0:00:49.1]} 18. b4 {[%clk
0:01:54.4]} 18... Nxe3 {[%clk 0:00:41.4]} 19. f3 {[%clk 0:01:36.6]} 19... Nxf1
{[%clk 0:00:41]} 20. Kxf1 {[%clk 0:01:36.5]} 20... Rd8 {[%clk 0:00:38]} 21. Qc4
{[%clk 0:01:32.1]} 21... Nf5 {[%clk 0:00:38.2]} 22. Ne4 {[%clk 0:01:28.7]} 22...
Ne3+ {[%clk 0:00:37.9]} 0-1

[Event "*** SCC Grand Prix: Titled Tuesday Blitz"]
[Site "Chess.com"]
[Date "2020.06.23"]
[Round "2"]
[White "Pavel_Mir"]
[Black "platy3"]
[Result "0-1"]
[WhiteElo "2342"]
[BlackElo "2775"]
[TimeControl "180+1"]
[EndTime "10:16:13 PDT"]
[Termination "platy3 won by checkmate"]

1. e4 {[%clk 0:02:59]} 1... c5 {[%clk 0:02:59.5]} 2. Nf3 {[%clk 0:02:58.7]} 2...
d6 {[%clk 0:02:59.4]} 3. d4 {[%clk 0:02:55.7]} 3... cxd4 {[%clk 0:02:59.7]} 4.
Nxd4 {[%clk 0:02:56.3]} 4... Nf6 {[%clk 0:03:00.4]} 5. Nc3 {[%clk 0:02:56.8]}
5... Nc6 {[%clk 0:03:00.9]} 6. f4 {[%clk 0:02:57]} 6... e6 {[%clk 0:03:00]} 7.
Nxc6 {[%clk 0:02:55.6]} 7... bxc6 {[%clk 0:02:59.9]} 8. Bd3 {[%clk 0:02:56]}
8... d5 {[%clk 0:02:59.6]} 9. e5 {[%clk 0:02:54.3]} 9... Nd7 {[%clk 0:02:59.4]}
10. O-O {[%clk 0:02:54.7]} 10... g6 {[%clk 0:02:58.9]} 11. Kh1 {[%clk
0:02:54.4]} 11... Bg7 {[%clk 0:02:58.9]} 12. b4 {[%clk 0:02:48.3]} 12... a5
{[%clk 0:02:57.8]} 13. b5 {[%clk 0:02:33.9]} 13... c5 {[%clk 0:02:56.7]} 14. a4
{[%clk 0:02:20.7]} 14... Nb6 {[%clk 0:02:53.6]} 15. Ba3 {[%clk 0:02:18.8]} 15...
Qc7 {[%clk 0:02:44]} 16. Qf3 {[%clk 0:02:05.5]} 16... Bb7 {[%clk 0:02:40.6]} 17.
Qf2 {[%clk 0:02:05.3]} 17... Rc8 {[%clk 0:02:36.4]} 18. Rae1 {[%clk 0:01:55.6]}
18... O-O {[%clk 0:02:35.3]} 19. Qg3 {[%clk 0:01:40.1]} 19... Rfd8 {[%clk
0:02:16.4]} 20. Bc1 {[%clk 0:01:20]} 20... c4 {[%clk 0:02:11.9]} 21. Be2 {[%clk
0:01:19.2]} 21... d4 {[%clk 0:02:10.2]} 22. Nd1 {[%clk 0:01:11.9]} 22... d3
{[%clk 0:02:08.5]} 23. Bf3 {[%clk 0:00:15.6]} 23... d2 {[%clk 0:02:01.2]} 24.
Bxd2 {[%clk 0:00:12.9]} 24... Rxd2 {[%clk 0:02:02.1]} 25. Bxb7 {[%clk
0:00:12.2]} 25... Qxb7 {[%clk 0:02:03]} 26. Qc3 {[%clk 0:00:12.1]} 26... Qxg2#
{[%clk 0:02:02.2]} 0-1

[Event "*** SCC Grand Prix: Titled Tuesday Blitz"]
[Site "Chess.com"]
[Date "2020.06.23"]
[Round "2"]
[White "AndrewDGreen"]
[Black "tapu2"]
[Result "0-1"]
[WhiteElo "2323"]
[BlackElo "2616"]
[TimeControl "180+1"]
[EndTime "10:16:14 PDT"]
[Termination "tapu2 won by resignation"]

1. e4 {[%clk 0:03:00.9]} 1... Nf6 {[%clk 0:02:59.4]} 2. e5 {[%clk 0:03:00.7]}
2... Nd5 {[%clk 0:02:58.9]} 3. d4 {[%clk 0:03:00.8]} 3... d6 {[%clk 0:02:57.6]}
4. exd6 {[%clk 0:03:01.7]} 4... cxd6 {[%clk 0:02:57.2]} 5. Nf3 {[%clk
0:02:59.9]} 5... g6 {[%clk 0:02:56.9]} 6. Bc4 {[%clk 0:02:59.4]} 6... Nb6 {[%clk
0:02:56.3]} 7. Bb3 {[%clk 0:02:59.7]} 7... Bg7 {[%clk 0:02:56.1]} 8. c3 {[%clk
0:03:00.2]} 8... O-O {[%clk 0:02:55.7]} 9. O-O {[%clk 0:03:00.8]} 9... Nc6
{[%clk 0:02:54.9]} 10. Re1 {[%clk 0:03:01.2]} 10... Qc7 {[%clk 0:02:42.8]} 11.
h3 {[%clk 0:03:00.5]} 11... e5 {[%clk 0:02:42.1]} 12. Na3 {[%clk 0:02:47.9]}
12... a6 {[%clk 0:02:19.2]} 13. Bg5 {[%clk 0:02:30.7]} 13... h6 {[%clk
0:02:13.6]} 14. Bh4 {[%clk 0:02:30.7]} 14... Kh7 {[%clk 0:02:13.4]} 15. Bg3
{[%clk 0:02:29.6]} 15... f5 {[%clk 0:02:10.9]} 16. dxe5 {[%clk 0:02:18.1]} 16...
dxe5 {[%clk 0:02:08.5]} 17. Qe2 {[%clk 0:02:17.4]} 17... f4 {[%clk 0:02:06.4]}
18. Bh2 {[%clk 0:02:17.5]} 18... Bf5 {[%clk 0:02:02.3]} 19. Nh4 {[%clk
0:02:08.2]} 19... Rae8 {[%clk 0:01:43.6]} 20. Nxf5 {[%clk 0:02:06.4]} 20... gxf5
{[%clk 0:01:43.8]} 21. Bxf4 {[%clk 0:01:57.7]} 21... exf4 {[%clk 0:01:41.7]} 22.
Qxe8 {[%clk 0:01:57.2]} 22... Rxe8 {[%clk 0:01:40.9]} 23. Rxe8 {[%clk
0:01:58.1]} 23... Ne7 {[%clk 0:01:33.7]} 24. Re1 {[%clk 0:01:55.8]} 24... Bf6
{[%clk 0:01:32.5]} 25. Re6 {[%clk 0:01:49.1]} 25... Kg7 {[%clk 0:01:32.9]} 26.
h4 {[%clk 0:01:31.5]} 26... Nbc8 {[%clk 0:01:26.8]} 27. h5 {[%clk 0:01:25.4]}
27... Qd7 {[%clk 0:01:20.4]} 28. R8xe7+ {[%clk 0:01:10.2]} 28... Nxe7 {[%clk
0:01:18.3]} 0-1

[Event "*** SCC Grand Prix: Titled Tuesday Blitz"]
[Site "Chess.com"]
[Date "2020.06.23"]
[Round "2"]
[White "hectorfiori"]
[Black "novendrapriasmoro"]
[Result "0-1"]
[WhiteElo "2321"]
[BlackElo "2606"]
[TimeControl "180+1"]
[EndTime "10:16:14 PDT"]
[Termination "novendrapriasmoro won by resignation"]

1. e4 {[%clk 0:03:00.9]} 1... c5 {[%clk 0:02:59.7]} 2. Nf3 {[%clk 0:03:00.3]}
2... Nc6 {[%clk 0:03:00.6]} 3. d4 {[%clk 0:03:00.5]} 3... cxd4 {[%clk
0:03:01.5]} 4. Nxd4 {[%clk 0:03:00.9]} 4... g6 {[%clk 0:03:01.9]} 5. c4 {[%clk
0:03:00.3]} 5... Bg7 {[%clk 0:03:02.3]} 6. Be3 {[%clk 0:03:00.2]} 6... Nf6
{[%clk 0:03:02.4]} 7. Nc3 {[%clk 0:03:00.9]} 7... O-O {[%clk 0:03:02.5]} 8. Be2
{[%clk 0:03:01.4]} 8... d6 {[%clk 0:03:02.9]} 9. O-O {[%clk 0:03:01.7]} 9... Bd7
{[%clk 0:03:03]} 10. Qd2 {[%clk 0:03:02.2]} 10... Nxd4 {[%clk 0:03:03.1]} 11.
Bxd4 {[%clk 0:03:03.1]} 11... Bc6 {[%clk 0:03:04]} 12. Bd3 {[%clk 0:03:03]}
12... Nd7 {[%clk 0:03:01.8]} 13. Bxg7 {[%clk 0:03:03.3]} 13... Kxg7 {[%clk
0:03:02.7]} 14. Rae1 {[%clk 0:03:03.3]} 14... a5 {[%clk 0:03:02.3]} 15. b3
{[%clk 0:03:00.9]} 15... Qb6 {[%clk 0:03:02.5]} 16. Kh1 {[%clk 0:03:00.5]} 16...
Nc5 {[%clk 0:03:02.3]} 17. Bc2 {[%clk 0:02:52.6]} 17... Kg8 {[%clk 0:02:58.8]}
18. f4 {[%clk 0:02:52.2]} 18... Rad8 {[%clk 0:02:55.8]} 19. f5 {[%clk 0:02:52]}
19... Nd7 {[%clk 0:02:51.3]} 20. Re3 {[%clk 0:02:42.8]} 20... Qc5 {[%clk
0:02:41.9]} 21. Rh3 {[%clk 0:02:39.3]} 21... Qe5 {[%clk 0:02:41.2]} 22. f6
{[%clk 0:02:06.7]} 22... Nxf6 {[%clk 0:02:19]} 23. Qh6 {[%clk 0:01:50.2]} 23...
Bd7 {[%clk 0:02:13]} 24. Rg3 {[%clk 0:01:19.2]} 24... Nh5 {[%clk 0:01:56.5]} 25.
Rg5 {[%clk 0:01:16.2]} 25... Qxc3 {[%clk 0:01:52.5]} 26. Rxh5 {[%clk 0:01:01.4]}
26... gxh5 {[%clk 0:01:42.1]} 0-1

[Event "*** SCC Grand Prix: Titled Tuesday Blitz"]
[Site "Chess.com"]
[Date "2020.06.23"]
[Round "2"]
[White "DonPreuss"]
[Black "LogoCzar"]
[Result "0-1"]
[WhiteElo "2197"]
[BlackElo "2436"]
[TimeControl "180+1"]
[EndTime "10:16:18 PDT"]
[Termination "LogoCzar won by resignation"]

1. d4 {[%clk 0:03:00.9]} 1... d5 {[%clk 0:02:58.9]} 2. e4 {[%clk 0:03:00.8]}
2... dxe4 {[%clk 0:02:56]} 3. Nc3 {[%clk 0:03:01]} 3... c5 {[%clk 0:02:51.8]} 4.
d5 {[%clk 0:03:00.6]} 4... Nf6 {[%clk 0:02:51.8]} 5. Bb5+ {[%clk 0:02:55.3]}
5... Nbd7 {[%clk 0:02:50.4]} 6. f3 {[%clk 0:02:54]} 6... exf3 {[%clk 0:02:42.1]}
7. Nxf3 {[%clk 0:02:53.3]} 7... a6 {[%clk 0:02:42.5]} 8. Be2 {[%clk 0:02:48.6]}
8... g6 {[%clk 0:02:40.9]} 9. O-O {[%clk 0:02:48.3]} 9... Bg7 {[%clk 0:02:41]}
10. Qe1 {[%clk 0:02:48.4]} 10... b5 {[%clk 0:02:38.3]} 11. Qh4 {[%clk
0:02:48.4]} 11... b4 {[%clk 0:02:32.6]} 12. Bh6 {[%clk 0:01:55.2]} 12... Bxh6
{[%clk 0:02:25.8]} 13. Qxh6 {[%clk 0:01:55]} 13... bxc3 {[%clk 0:02:21.7]} 14.
Ng5 {[%clk 0:01:50.6]} 14... Bb7 {[%clk 0:02:11.1]} 15. Bc4 {[%clk 0:01:28.7]}
15... Ne5 {[%clk 0:02:09.4]} 16. Rae1 {[%clk 0:01:24.8]} 16... Nxc4 {[%clk
0:02:05.2]} 17. Qg7 {[%clk 0:01:21.9]} 17... Rf8 {[%clk 0:02:04.1]} 18. Rxf6
{[%clk 0:00:51.4]} 18... Qxd5 {[%clk 0:01:56.9]} 19. Nf3 {[%clk 0:00:36.5]}
19... O-O-O {[%clk 0:01:53.7]} 20. Rf4 {[%clk 0:00:30.3]} 20... e5 {[%clk
0:01:49.9]} 21. Rf6 {[%clk 0:00:28.4]} 21... cxb2 {[%clk 0:01:43.8]} 0-1

[Event "*** SCC Grand Prix: Titled Tuesday Blitz"]
[Site "Chess.com"]
[Date "2020.06.23"]
[Round "2"]
[White "Dmitry_Konenkin"]
[Black "dodorox"]
[Result "1-0"]
[WhiteElo "2382"]
[BlackElo "2030"]
[TimeControl "180+1"]
[EndTime "10:16:20 PDT"]
[Termination "Dmitry_Konenkin won by resignation"]

1. d4 {[%clk 0:03:00.9]} 1... Nf6 {[%clk 0:02:58.7]} 2. Bg5 {[%clk 0:03:01]}
2... Ne4 {[%clk 0:02:56.2]} 3. Bh4 {[%clk 0:03:00.8]} 3... d5 {[%clk 0:02:56.2]}
4. f3 {[%clk 0:03:01.1]} 4... Nd6 {[%clk 0:02:52.1]} 5. Nc3 {[%clk 0:03:01.4]}
5... c6 {[%clk 0:02:50.8]} 6. e4 {[%clk 0:03:01.9]} 6... Qa5 {[%clk 0:02:39.1]}
7. Qd2 {[%clk 0:03:01.1]} 7... g6 {[%clk 0:02:25.9]} 8. O-O-O {[%clk 0:02:58.8]}
8... Bg7 {[%clk 0:02:11.7]} 9. Kb1 {[%clk 0:02:59]} 9... Nc4 {[%clk 0:01:41.9]}
10. Bxc4 {[%clk 0:02:58.1]} 10... dxc4 {[%clk 0:01:42.8]} 11. Bxe7 {[%clk
0:02:51.7]} 11... b5 {[%clk 0:01:06.3]} 12. a3 {[%clk 0:02:39.2]} 12... Bb7
{[%clk 0:01:01.4]} 13. Qg5 {[%clk 0:02:28.1]} 13... Nd7 {[%clk 0:00:54.7]} 14.
Bd6 {[%clk 0:02:26.3]} 14... f6 {[%clk 0:00:43.3]} 15. Qg4 {[%clk 0:02:23.1]}
15... O-O-O {[%clk 0:00:41.6]} 16. e5 {[%clk 0:02:20.3]} 16... f5 {[%clk
0:00:32.3]} 17. Qg5 {[%clk 0:02:15.7]} 17... Nf8 {[%clk 0:00:29]} 18. Qe7 {[%clk
0:02:13.3]} 18... Rd7 {[%clk 0:00:21.1]} 19. Qh4 {[%clk 0:01:55]} 19... Ne6
{[%clk 0:00:17.5]} 20. Nge2 {[%clk 0:01:49.8]} 20... g5 {[%clk 0:00:16.1]} 21.
Qh3 {[%clk 0:01:47.4]} 21... f4 {[%clk 0:00:12.1]} 22. Qxe6 {[%clk 0:01:47]} 1-0

[Event "*** SCC Grand Prix: Titled Tuesday Blitz"]
[Site "Chess.com"]
[Date "2020.06.23"]
[Round "2"]
[White "cukin84"]
[Black "Makswolf200817"]
[Result "0-1"]
[WhiteElo "2154"]
[BlackElo "2407"]
[TimeControl "180+1"]
[EndTime "10:16:25 PDT"]
[Termination "Makswolf200817 won by resignation"]

1. e4 {[%clk 0:03:00.9]} 1... e6 {[%clk 0:02:58.4]} 2. d4 {[%clk 0:03:00.4]}
2... d5 {[%clk 0:02:58.1]} 3. Nc3 {[%clk 0:02:59.8]} 3... Bb4 {[%clk 0:02:57.4]}
4. exd5 {[%clk 0:02:57.9]} 4... exd5 {[%clk 0:02:57.3]} 5. Bd3 {[%clk
0:02:57.4]} 5... Nf6 {[%clk 0:02:56.1]} 6. Bg5 {[%clk 0:02:56.8]} 6... O-O
{[%clk 0:02:54.5]} 7. Ne2 {[%clk 0:02:53.3]} 7... h6 {[%clk 0:02:53.8]} 8. Bh4
{[%clk 0:02:52.2]} 8... g5 {[%clk 0:02:51.1]} 9. Bg3 {[%clk 0:02:51.4]} 9... Ne4
{[%clk 0:02:51.4]} 10. O-O {[%clk 0:02:50.2]} 10... f5 {[%clk 0:02:50.6]} 11.
Be5 {[%clk 0:02:48.2]} 11... Nc6 {[%clk 0:02:48.6]} 12. f3 {[%clk 0:02:35.7]}
12... Nxe5 {[%clk 0:02:30.8]} 13. dxe5 {[%clk 0:02:27.3]} 13... Bc5+ {[%clk
0:02:29.3]} 14. Kh1 {[%clk 0:02:25.2]} 14... Nf2+ {[%clk 0:02:28.8]} 15. Rxf2
{[%clk 0:02:24.3]} 15... Bxf2 {[%clk 0:02:29.7]} 16. b3 {[%clk 0:02:05.1]} 16...
Be6 {[%clk 0:02:28.3]} 17. Qf1 {[%clk 0:02:02.9]} 17... Bb6 {[%clk 0:02:26.5]}
18. Na4 {[%clk 0:01:58.8]} 18... Qe7 {[%clk 0:02:21.6]} 19. Rd1 {[%clk
0:01:49.6]} 19... c5 {[%clk 0:02:15.7]} 20. f4 {[%clk 0:01:37.6]} 20... c4
{[%clk 0:02:13.3]} 21. bxc4 {[%clk 0:01:15.2]} 21... dxc4 {[%clk 0:02:12.9]} 22.
fxg5 {[%clk 0:00:59.1]} 22... cxd3 {[%clk 0:02:11.9]} 23. cxd3 {[%clk
0:00:57.7]} 23... hxg5 {[%clk 0:02:11.3]} 24. d4 {[%clk 0:00:56.1]} 24... Rad8
{[%clk 0:02:06.7]} 25. Nxb6 {[%clk 0:00:53.3]} 25... axb6 {[%clk 0:02:06.5]} 26.
Qf3 {[%clk 0:00:50.6]} 26... Bxa2 {[%clk 0:02:02]} 27. Ng3 {[%clk 0:00:45.1]}
27... f4 {[%clk 0:01:54.1]} 28. Ne4 {[%clk 0:00:42.9]} 28... Bd5 {[%clk
0:01:53.5]} 29. h4 {[%clk 0:00:34.5]} 29... Bxe4 {[%clk 0:01:50.1]} 30. Qxe4
{[%clk 0:00:34.1]} 30... Qh7 {[%clk 0:01:49.4]} 0-1

[Event "*** SCC Grand Prix: Titled Tuesday Blitz"]
[Site "Chess.com"]
[Date "2020.06.23"]
[Round "2"]
[White "Abund"]
[Black "Azerichess"]
[Result "0-1"]
[WhiteElo "2609"]
[BlackElo "3040"]
[TimeControl "180+1"]
[EndTime "10:16:27 PDT"]
[Termination "Azerichess won by resignation"]

1. d4 {[%clk 0:03:00.9]} 1... d5 {[%clk 0:02:59.3]} 2. c4 {[%clk 0:03:00.8]}
2... c5 {[%clk 0:02:59.6]} 3. cxd5 {[%clk 0:02:45.8]} 3... Qxd5 {[%clk
0:03:00.5]} 4. Nf3 {[%clk 0:02:45.7]} 4... cxd4 {[%clk 0:03:00.6]} 5. Nc3 {[%clk
0:02:44.6]} 5... Qa5 {[%clk 0:03:00.4]} 6. Nxd4 {[%clk 0:02:43]} 6... Nf6 {[%clk
0:03:00.8]} 7. g3 {[%clk 0:02:35.9]} 7... e5 {[%clk 0:02:51.6]} 8. Nb3 {[%clk
0:02:35.2]} 8... Qc7 {[%clk 0:02:52.2]} 9. Bg2 {[%clk 0:02:34.2]} 9... Bb4
{[%clk 0:02:52.8]} 10. O-O {[%clk 0:02:33.3]} 10... Bxc3 {[%clk 0:02:45.4]} 11.
bxc3 {[%clk 0:02:30.3]} 11... O-O {[%clk 0:02:45]} 12. Qc2 {[%clk 0:02:16.1]}
12... Be6 {[%clk 0:02:35]} 13. Rd1 {[%clk 0:02:13.3]} 13... Rc8 {[%clk
0:02:29.4]} 14. Bg5 {[%clk 0:02:05.7]} 14... Nbd7 {[%clk 0:02:28.1]} 15. Na5
{[%clk 0:01:56.8]} 15... Qxa5 {[%clk 0:02:24]} 16. Bxb7 {[%clk 0:01:49.1]} 16...
h6 {[%clk 0:02:18.3]} 17. Bxf6 {[%clk 0:01:43.2]} 17... Nxf6 {[%clk 0:02:17.9]}
18. Bxa8 {[%clk 0:01:41.1]} 18... Rxa8 {[%clk 0:02:18.8]} 19. Qb2 {[%clk
0:01:38]} 19... Rc8 {[%clk 0:02:16.4]} 20. Rdc1 {[%clk 0:01:32.9]} 20... Ne4
{[%clk 0:02:05.5]} 21. Qb4 {[%clk 0:01:29.3]} 21... Qd5 {[%clk 0:01:52.2]} 22.
a4 {[%clk 0:01:04.2]} 22... Ng5 {[%clk 0:01:48.6]} 23. f3 {[%clk 0:01:03.7]}
23... Qd2 {[%clk 0:01:47.7]} 24. Kf2 {[%clk 0:00:50.2]} 24... Nh3+ {[%clk
0:01:35.8]} 25. Kf1 {[%clk 0:00:49.7]} 25... Qe3 {[%clk 0:01:34.3]} 26. Kg2
{[%clk 0:00:43.6]} 26... Qxe2+ {[%clk 0:01:33.5]} 0-1

[Event "*** SCC Grand Prix: Titled Tuesday Blitz"]
[Site "Chess.com"]
[Date "2020.06.23"]
[Round "2"]
[White "AleksibFan"]
[Black "VMikhalevski"]
[Result "0-1"]
[WhiteElo "2509"]
[BlackElo "2777"]
[TimeControl "180+1"]
[EndTime "10:16:28 PDT"]
[Termination "VMikhalevski won by resignation"]

1. d4 {[%clk 0:03:00.9]} 1... Nf6 {[%clk 0:02:59.4]} 2. Bg5 {[%clk 0:03:01]}
2... Ne4 {[%clk 0:02:57.1]} 3. Bf4 {[%clk 0:03:01]} 3... c5 {[%clk 0:02:56.6]}
4. f3 {[%clk 0:03:00.6]} 4... Qa5+ {[%clk 0:02:56.2]} 5. c3 {[%clk 0:03:00.6]}
5... Nf6 {[%clk 0:02:56.1]} 6. d5 {[%clk 0:03:01.1]} 6... Qb6 {[%clk 0:02:51.4]}
7. b3 {[%clk 0:03:00.7]} 7... g6 {[%clk 0:02:46.9]} 8. e4 {[%clk 0:03:00.4]}
8... d6 {[%clk 0:02:47.1]} 9. c4 {[%clk 0:02:59.2]} 9... Bg7 {[%clk 0:02:46.5]}
10. Nc3 {[%clk 0:02:58.9]} 10... O-O {[%clk 0:02:35.7]} 11. Qd2 {[%clk
0:02:58.3]} 11... Re8 {[%clk 0:02:34]} 12. Nge2 {[%clk 0:02:57.2]} 12... e6
{[%clk 0:02:28.2]} 13. Ng3 {[%clk 0:02:36.4]} 13... h5 {[%clk 0:02:14.4]} 14. h4
{[%clk 0:02:33.3]} 14... exd5 {[%clk 0:02:08.5]} 15. cxd5 {[%clk 0:02:31.6]}
15... Nbd7 {[%clk 0:02:07.4]} 16. Be2 {[%clk 0:02:22.6]} 16... Ne5 {[%clk
0:02:04.6]} 17. O-O {[%clk 0:02:17.2]} 17... a6 {[%clk 0:02:04.6]} 18. Kh1
{[%clk 0:02:06.3]} 18... Bd7 {[%clk 0:02:01.8]} 19. Rac1 {[%clk 0:01:56]} 19...
Qa5 {[%clk 0:01:56.5]} 20. Bg5 {[%clk 0:01:16.2]} 20... b5 {[%clk 0:01:52.4]}
21. Bxf6 {[%clk 0:01:01.5]} 21... Bxf6 {[%clk 0:01:51.3]} 22. f4 {[%clk
0:01:00.8]} 22... Ng4 {[%clk 0:01:48]} 23. Bxg4 {[%clk 0:00:50.6]} 23... Bxg4
{[%clk 0:01:46]} 24. e5 {[%clk 0:00:49.8]} 24... dxe5 {[%clk 0:01:35.3]} 25.
Nce4 {[%clk 0:00:36.3]} 25... Qxd2 {[%clk 0:01:34.1]} 0-1

[Event "*** SCC Grand Prix: Titled Tuesday Blitz"]
[Site "Chess.com"]
[Date "2020.06.23"]
[Round "2"]
[White "Ladislav1969"]
[Black "murtas73"]
[Result "0-1"]
[WhiteElo "2326"]
[BlackElo "2638"]
[TimeControl "180+1"]
[EndTime "10:16:29 PDT"]
[Termination "murtas73 won by resignation"]

1. e4 {[%clk 0:03:00.9]} 1... c5 {[%clk 0:02:58]} 2. d4 {[%clk 0:03:00.5]} 2...
cxd4 {[%clk 0:02:56.7]} 3. c3 {[%clk 0:03:00.8]} 3... dxc3 {[%clk 0:02:57.3]} 4.
Nxc3 {[%clk 0:03:01.1]} 4... e6 {[%clk 0:02:57.9]} 5. Nf3 {[%clk 0:03:01.1]}
5... Nc6 {[%clk 0:02:58.4]} 6. Bc4 {[%clk 0:03:00.9]} 6... a6 {[%clk 0:02:58.4]}
7. O-O {[%clk 0:03:00.8]} 7... Nge7 {[%clk 0:02:58.8]} 8. Be3 {[%clk 0:02:50.8]}
8... Ng6 {[%clk 0:02:58]} 9. a4 {[%clk 0:02:41.1]} 9... Be7 {[%clk 0:02:57]} 10.
Nd4 {[%clk 0:02:36.2]} 10... O-O {[%clk 0:02:50.3]} 11. f4 {[%clk 0:02:35.6]}
11... Qc7 {[%clk 0:02:42.6]} 12. Rc1 {[%clk 0:02:27.4]} 12... d6 {[%clk
0:02:31.1]} 13. f5 {[%clk 0:02:07.3]} 13... Nxd4 {[%clk 0:02:30.3]} 14. Qxd4
{[%clk 0:02:02.7]} 14... Bf6 {[%clk 0:02:27.1]} 15. Qd2 {[%clk 0:01:36.4]} 15...
Ne5 {[%clk 0:02:26.4]} 16. Bb3 {[%clk 0:01:25.5]} 16... Qe7 {[%clk 0:02:25.8]}
17. Rfd1 {[%clk 0:01:17]} 17... Rd8 {[%clk 0:02:24.4]} 18. Bb6 {[%clk
0:01:07.9]} 18... Re8 {[%clk 0:02:17.1]} 19. fxe6 {[%clk 0:00:59.9]} 19... Bxe6
{[%clk 0:02:15.7]} 20. Bxe6 {[%clk 0:00:59.2]} 20... fxe6 {[%clk 0:02:12.7]} 21.
Qxd6 {[%clk 0:00:58.9]} 21... Qxd6 {[%clk 0:02:12]} 22. Rxd6 {[%clk 0:00:55.2]}
22... Nc4 {[%clk 0:02:12.3]} 23. Rcd1 {[%clk 0:00:35.1]} 23... Nxb2 {[%clk
0:02:03.9]} 24. R1d4 {[%clk 0:00:29.5]} 24... Rac8 {[%clk 0:01:59.4]} 25. Ne2
{[%clk 0:00:17.6]} 25... Nc4 {[%clk 0:01:58.2]} 26. e5 {[%clk 0:00:07.7]} 26...
Bxe5 {[%clk 0:01:56.7]} 0-1